Workbook

Sheet Sheet1
A1: "별첨 1"
A2: 산란실용계 사료비용 산출근거표 | G2: 수당비용(원) | H2: =G26 -> 3,630
F3: 7 | H3: (단위 : g/원)
A4: 주령 | B4: 급이사료명 (예시) | C4: 1일급이량 | D4: 1일급이량 | E4: 총급이량 (g/주) | F4: 단가(원) (농장별단가) | G4: 사료투입비용 | H4: 비 고
A5: 1 | B5: 어린병아리 | C5: 13 | D5: 20 | E5: =D5*$F$3 -> 140 | F5: 450 | G5: =E5*F5/1000 -> 63 | H5: *실제 농장별 급이사료내역으로 작성 (예시) 초이사료, 어린병아리, 중병아리, 큰병아리, 산란예비, 산란
A6: 2 | B6: 어린병아리 | C6: 20 | D6: 27 | E6: =D6*$F$3 -> 189 | F6: 450 | G6: =E6*F6/1000 -> 85
A7: 3 | B7: 어린병아리 | C7: 25 | D7: 33 | E7: =D7*$F$3 -> 231 | F7: 450 | G7: =E7*F7/1000 -> 104
A8: 4 | B8: 어린병아리 | C8: 29 | D8: 38 | E8: =D8*$F$3 -> 266 | F8: 450 | G8: 120 | H8: *중추로 구입시 해당농장 사육기간동안의 사료투입량으로 산정
A9: 5 | B9: 어린병아리 | C9: 33 | D9: 41 | E9: =D9*$F$3 -> 287 | F9: 450 | G9: 129
A10: 6 | B10: 어린병아리 | C10: 37 | D10: 44 | E10: 308 | F10: 450 | G10: 139
A11: 7 | B11: 중병아리 | C11: 41 | D11: 51 | E11: 357 | F11: 400 | G11: 143
A12: 8 | B12: 중병아리 | C12: 46 | D12: 55 | E12: 385 | F12: 400 | G12: 154
A13: 9 | B13: 중병아리 | C13: 51 | D13: 60 | E13: 420 | F13: 400 | G13: 168
A14: 10 | B14: 중병아리 | C14: 56 | D14: 64 | E14: 448 | F14: 400 | G14: 179
A15: 11 | B15: 중병아리 | C15: 61 | D15: 67 | E15: 469 | F15: 400 | G15: 188
A16: 12 | B16: 중병아리 | C16: 66 | D16: 70 | E16: 490 | F16: 400 | G16: 196
A17: 13 | B17: 큰병아리 | C17: 70 | D17: 73 | E17: 511 | F17: 380 | G17: 194
A18: 14 | B18: 큰병아리 | C18: 73 | D18: 76 | E18: 532 | F18: 380 | G18: 202
A19: 15 | B19: 큰병아리 | C19: 75 | D19: 78 | E19: 546 | F19: 380 | G19: 207
A20: 16 | B20: 큰병아리 | C20: 77 | D20: 81 | E20: 567 | F20: 380 | G20: 215
A21: 17 | B21: 산란예비사료 | C21: 80 | D21: 83 | E21: 581 | F21: 400 | G21: 232
A22: 18 | B22: 산란예비사료 | C22: 83 | D22: 85 | E22: 595 | F22: 400 | G22: 238
A23: 19 | B23: 산란 | C23: 86 | D23: 88 | E23: 616 | F23: 350 | G23: 216
A24: 20 | B24: 산란 | C24: 89 | D24: 92 | E24: 644 | F24: 350 | G24: 225
A25: 21 | B25: 산란 | C25: 92 | D25: 95 | E25: 665 | F25: 350 | G25: 233
A26: 소 계 | C26: =SUM(C5:C25) -> 1,203 | D26: =SUM(D5:D25) -> 1,321 | E26: =SUM(E5:E25) -> 9,247 | F26: =AVERAGE(F5:F25) -> 403 | G26: =SUM(G5:G25) -> 3,630
A28: *붉은색 글자는 예시금액입니다. 실제 농장별 사료급이 구간 및 거래가격을 입력하시면 됩니다.

Sheet Sheet2

Sheet Sheet3
